fUSD/lending_fUSD_20250330
["ID","MTS","AMOUNT","RATE_DAILY","PERIOD"]
[356838806,1743313843748,-151.0,0.000249,7]
[356838807,1743313843758,-151.0,0.000249,7]
[356838808,1743313843766,-151.0,0.000249,7]
[356838809,1743313843777,-151.0,0.000249,7]
[356838810,1743313843788,-151.0,0.000249,7]
[356838811,1743313843798,-151.0,0.000249,7]
[356838812,1743313843807,-151.0,0.000249,7]
[356838813,1743313843816,-151.0,0.000249,7]
[356838814,1743313843826,-456.47439,0.000249,6]
[356838815,1743313843835,-456.47439,0.000249,6]
[356838816,1743313843847,-151.229133,0.000249,7]
[356838817,1743313843856,-262.702078,0.000249,7]
[356838818,1743313843866,-262.702078,0.000249,7]
[356838819,1743313843875,-157.307026,0.000249,7]
[356838821,1743313843884,-157.307026,0.000249,7]
[356838822,1743313843893,-454.097864,0.000249,7]
[356838823,1743313843902,-454.097864,0.000249,7]
[356838824,1743313843911,-151.0,0.000249,7]
[356838825,1743313843921,-151.418382,0.000249,7]
[356838826,1743313843930,-1691.825242,0.000249,7]
[356838827,1743313843939,-1691.825242,0.000249,7]
[356838828,1743313843948,-340.901456,0.000249,7]
[356838829,1743313843957,-340.901456,0.000249,7]
[356838830,1743313843966,-151.0,0.000249,7]
[356838831,1743313843975,-151.0,0.000249,7]
[356838832,1743313843984,-403.24109,0.000249,7]
[356838833,1743313843993,-403.24109,0.000249,7]
[356838834,1743313844004,-151.0,0.000249,7]
[356838835,1743313844013,-151.0,0.000249,7]
[356838836,1743313844021,-151.0,0.000249,7]
[356838837,1743313844031,-151.0,0.000249,7]
[356838838,1743313844039,-288.510051,0.000249,7]
[356838839,1743313844049,-288.510051,0.000249,7]
[356838840,1743313844058,-485.476002,0.000249,7]
[356838841,1743313844066,-151.0,0.000249,7]
[356838842,1743313844075,-485.476002,0.000249,7]
[356838843,1743313844085,-151.0,0.000249,7]
[356838844,1743313844095,-151.0,0.000249,7]
[356838845,1743313844104,-151.0,0.000249,7]
[356838846,1743313844114,-151.0,0.000249,7]
[356838847,1743313844123,-151.0,0.000249,7]
[356838848,1743313844132,-151.0,0.000249,7]
[356838849,1743313844142,-151.0,0.000249,7]
[356838850,1743313844151,-160.19209686,0.000249,2]
[356838851,1743313844160,-363.908063,0.000249,7]
[356838852,1743313844169,-363.908063,0.000249,7]
[356838853,1743313844178,-151.0,0.000249,7]
[356838854,1743313844187,-725.127723,0.000249,7]
[356838855,1743313844197,-725.127723,0.000249,7]
[356838856,1743313844206,-746.292473,0.000249,7]
[356838857,1743313844216,-746.292473,0.000249,7]
[356838858,1743313844225,-151.0,0.000249,7]
[356838859,1743313844234,-277.446909,0.000249,7]
[356838860,1743313844243,-277.446909,0.000249,7]
[356838861,1743313844252,-1064.12745,0.000249,7]
[356838862,1743313844262,-1064.12745,0.000249,7]
[356838863,1743313844271,-151.0,0.000249,7]
[356838864,1743313844280,-151.0,0.000249,7]
[356838865,1743313844289,-151.0,0.000249,7]
[356838866,1743313844298,-616.823947,0.000249,7]
[356838867,1743313844307,-616.823947,0.000249,7]
[356838868,1743313844316,-231.914525,0.000249,7]
[356838869,1743313844325,-231.914525,0.000249,7]
[356838870,1743313844335,-550.232468,0.000249,7]
[356838871,1743313844346,-151.0,0.000249,7]
[356838872,1743313844355,-550.232468,0.000249,7]
[356838873,1743313844365,-746.436611,0.000249,7]
[356838874,1743313844374,-746.436611,0.000249,7]
[356838875,1743313844384,-381.268454,0.000249,7]
[356838876,1743313844394,-381.268454,0.000249,7]
[356838877,1743313844403,-151.0,0.000249,7]
[356838878,1743313844412,-151.0,0.000249,7]
[356838879,1743313844421,-151.0,0.000249,7]
[356838880,1743313844431,-151.0,0.000249,7]
[356838881,1743313844440,-151.0,0.000249,7]
[356838882,1743313844449,-154.005268,0.000249,7]
[356838883,1743313844459,-151.0,0.000249,7]
[356838884,1743313844468,-174.582321,0.000249,7]
[356838885,1743313844477,-193.895808,0.000249,7]
[356838886,1743313844486,-153.941805,0.000249,7]
[356838887,1743313844495,-174.582321,0.000249,7]
[356838888,1743313844505,-193.895808,0.000249,7]
[356838889,1743313844514,-204.536839,0.000249,7]
[356838890,1743313844524,-181.477774,0.000249,7]
[356838891,1743313844533,-332.944299,0.000249,7]
[356838892,1743313844543,-151.0,0.000249,7]
[356838893,1743313844552,-181.477774,0.000249,7]
[356838894,1743313844561,-151.0,0.000249,7]
[356838895,1743313844571,-332.944299,0.000249,7]
[356838896,1743313844581,-151.0,0.000249,7]
[356838897,1743313844591,-189.323502,0.000249,7]
[356838898,1743313844600,-151.0,0.000249,7]
[356838899,1743313844610,-151.0,0.000249,7]
[356838900,1743313844619,-151.0,0.000249,7]
[356838901,1743313844629,-2622.855027,0.000249,7]
[356838902,1743313844639,-151.0,0.000249,7]
[356838903,1743313844649,-2622.855027,0.000249,7]
[356838904,1743313844658,-151.0,0.000249,7]
[356838905,1743313844667,-151.0,0.000249,7]
[356838906,1743313844677,-258.466624,0.000249,7]
[356838907,1743313844688,-258.466624,0.000249,7]
[356838908,1743313844697,-326.541455,0.000249,7]
[356838909,1743313844706,-326.541455,0.000249,7]
[356838910,1743313844716,-151.831802,0.000249,7]
[356838911,1743313844726,-507342.896952,0.000249,3]
[356838912,1743313844736,-151.831802,0.000249,7]
[356838913,1743313844745,-377.544954,0.000249,7]
[356838914,1743313844754,-377.544954,0.000249,7]
[356838915,1743313844764,-151.0,0.000249,7]
[356838916,1743313844773,-151.0,0.000249,7]
[356838917,1743313844786,-151.0,0.000249,7]
[356838918,1743313844796,-151.0,0.000249,7]
[356838919,1743313844805,-183.006145,0.000249,7]
[356838920,1743313844815,-183.006145,0.000249,7]
[356838921,1743313844826,-3150.350628,0.000249,7]
[356838922,1743313844835,-3150.350628,0.000249,7]
[356838923,1743313844846,-151.0,0.000249,7]
[356838924,1743313844856,-151.0,0.000249,7]
[356838925,1743313844865,-151.0,0.000249,7]
[356838926,1743313844875,-151.0,0.000249,7]
[356838927,1743313844885,-2031.204191,0.000249,7]
[356838928,1743313844894,-2031.204191,0.000249,7]
[356838929,1743313844904,-533.001828,0.000249,7]
[356838930,1743313844913,-533.001828,0.000249,7]
[356838931,1743313844922,-250.0,0.00025,2]
[356838932,1743313844934,-2924.01462381,0.00025,2]
[356838933,1743313844943,-1023.17320099,0.00025,2]
[356838934,1743313844953,-160.77162784,0.00025,2]
[356838935,1743313844963,-151.42,0.00025,2]
[356838936,1743313844972,-11283.11214588,0.0002501,2]
[356838937,1743313844982,-3247.30745078,0.000251,2]
[356838938,1743313844991,-658.00754688,0.00025567,2]
[356838939,1743313845001,-160.08,0.000258,7]
[356838940,1743313845011,-1000.0,0.00025841,2]
[356838941,1743313845021,-3947.0,0.0002588,2]
[356838942,1743313845031,-151.0,0.0002588,2]
[356838943,1743313845041,-3001.4190634,0.00025982,2]
[356838944,1743313845051,-209.0,0.0002599,2]
[356838945,1743313845060,-576.26374437,0.0002599,2]
[356838946,1743313845070,-4340.8426206,0.00026,2]
[356838947,1743313845080,-4433.65,0.00026,2]
[356838948,1743313845089,-150.0,0.00026027,2]
[356838949,1743313845099,-14128.66214234,0.000264,2]
[356838950,1743313845108,-256.33,0.00026849,2]
[356838951,1743313845118,-265.67,0.00026849,2]
[356838952,1743313845127,-150.19,0.00026849,2]
[356838953,1743313845137,-300.0,0.00027,2]
[356838954,1743313845146,-1566.85,0.00027115,2]
[356838955,1743313845156,-658.00754688,0.00027344,2]
[356838956,1743313845165,-209.0,0.0002737,2]
[356838957,1743313845174,-150.0,0.00027397,2]
[356838958,1743313845184,-151.0,0.00027397,7]
[356838959,1743313845193,-4715.92,0.00027397,2]
[356838960,1743313845203,-577.410764,0.000275,7]
[356838961,1743313845213,-577.410764,0.000275,7]
[356838962,1743313845223,-3266.79006715,0.000275,2]
[356838963,1743313845233,-209.0,0.0002875,2]
[356838964,1743313845242,-151.0,0.00028767,7]
[356838965,1743313845251,-151.0,0.00028767,7]
[356838966,1743313845261,-151.0,0.00028767,7]
[356838967,1743313845271,-151.0,0.00028767,7]
[356838968,1743313845280,-150.0,0.00028767,2]
[356838969,1743313845289,-4715.92,0.00028767,2]
[356838970,1743313845299,-679.205,0.0002888,2]
[356838971,1743313845308,-7103.8784618,0.0002898,2]
[356838972,1743313845317,-350.0,0.00029,2]
[356838973,1743313845327,-100246.83939216,0.00029,2]
[356838974,1743313845336,-485.476002,0.00029,7]
[356838975,1743313845346,-151.0,0.00029,7]
[356838976,1743313845356,-485.476002,0.00029,7]
[356838977,1743313845366,-151.0,0.00029,7]
[356838978,1743313845375,-151.0,0.00029,7]
[356838979,1743313845385,-151.0,0.00029,7]
[356838981,1743313845394,-151.0,0.00029,7]
[356838982,1743313845404,-151.0,0.00029,7]
[356838983,1743313845414,-181.126778,0.00029,7]
[356838984,1743313845423,-151.0,0.00029,7]
[356838985,1743313845433,-363.908063,0.00029,7]
[356838986,1743313845443,-363.908063,0.00029,7]
[356838987,1743313845452,-151.0,0.00029,7]
[356838988,1743313845462,-725.127723,0.00029,7]
[356838989,1743313845471,-725.127723,0.00029,7]
[356838990,1743313845481,-746.292473,0.00029,7]
[356838991,1743313845491,-746.292473,0.00029,7]
[356838992,1743313845501,-277.446909,0.00029,7]
[356838993,1743313845510,-277.446909,0.00029,7]
[356838994,1743313845520,-151.0,0.00029,7]
[356838995,1743313845529,-616.823947,0.00029,7]
[356838996,1743313845539,-616.823947,0.00029,7]
[356838997,1743313845549,-10000.0,0.00029,7]
[356838998,1743313845558,-151.0,0.00029,7]
[356839000,1743313845568,-151.0,0.00029,7]
[356839001,1743313845578,-151.0,0.00029,7]
[356839002,1743313845587,-151.0,0.00029,7]
[356839003,1743313845597,-158.008296,0.00029,7]
[356839004,1743313845606,-193.895808,0.00029,7]
[356839005,1743313845615,-193.895808,0.00029,7]
[356839006,1743313845625,-181.477774,0.00029,7]
[356839007,1743313845635,-332.944299,0.00029,7]
[356839008,1743313845644,-151.0,0.00029,7]
[356839009,1743313845654,-181.477774,0.00029,7]
[356839010,1743313845664,-151.0,0.00029,7]
[356839011,1743313845673,-332.944299,0.00029,7]
[356839012,1743313845683,-151.0,0.00029,7]
[356839013,1743313845693,-151.0,0.00029,7]
[356839014,1743313845702,-151.0,0.00029,7]
[356839015,1743313845711,-151.0,0.00029,7]
[356839016,1743313845721,-2622.855027,0.00029,7]
[356839017,1743313845730,-151.0,0.00029,7]
[356839018,1743313845739,-2622.855027,0.00029,7]
[356839019,1743313845748,-151.0,0.00029,7]
[356839020,1743313845758,-151.0,0.00029,7]
[356839021,1743313845767,-258.466624,0.00029,7]
[356839022,1743313845777,-258.466624,0.00029,7]
[356839023,1743313845790,-326.541455,0.00029,7]
[356839024,1743313845799,-326.541455,0.00029,7]
[356839025,1743313845809,-151.831802,0.00029,7]
[356839026,1743313845819,-151.831802,0.00029,7]
[356839027,1743313845829,-377.544954,0.00029,7]
[356839028,1743313845838,-377.544954,0.00029,7]
[356839029,1743313845847,-151.0,0.00029,7]
[356839030,1743313845857,-151.0,0.00029,7]
[356839031,1743313845867,-151.0,0.00029,7]
[356839032,1743313845876,-183.006145,0.00029,7]
[356839033,1743313845886,-183.006145,0.00029,7]
[356839034,1743313845895,-3150.350628,0.00029,7]
[356839035,1743313845905,-3150.350628,0.00029,7]
[356839036,1743313845915,-151.0,0.00029,7]
[356839037,1743313845924,-151.0,0.00029,7]
[356839038,1743313845933,-280.352311,0.00029,7]
[356839039,1743313845943,-2031.204191,0.00029,7]
[356839040,1743313845952,-2031.204191,0.00029,7]
[356839041,1743313845962,-533.001828,0.00029,7]
[356839042,1743313845971,-533.001828,0.00029,7]
[356839043,1743313845980,-658.00754688,0.00029122,2]
[356839044,1743313845989,-1566.85,0.00029379,2]
[356839045,1743313845999,-154.24591077,0.000294,2]
[356839046,1743313846009,-151.0,0.00029899,7]
[356839047,1743313846018,-151.0,0.00029899,7]
[356839048,1743313846027,-151.0,0.00029899,7]
[356839049,1743313846037,-151.0,0.00029899,7]
[356839050,1743313846046,-151.0,0.00029899,7]
[356839051,1743313846055,-151.949207,0.00029899,7]
[356839052,1743313846064,-151.0,0.00029899,7]
[356839053,1743313846073,-151.0,0.00029899,7]
[356839054,1743313846083,-456.47439,0.00029899,6]
[356839055,1743313846093,-456.47439,0.00029899,6]
[356839056,1743313846102,-262.702078,0.00029899,7]
[356839057,1743313846111,-262.702078,0.00029899,7]
[356839058,1743313846121,-157.307026,0.00029899,7]
[356839059,1743313846130,-157.307026,0.00029899,7]
[356839060,1743313846139,-454.097864,0.00029899,7]
[356839061,1743313846148,-454.097864,0.00029899,7]
[356839062,1743313846157,-151.0,0.00029899,7]
[356839063,1743313846167,-1691.825242,0.00029899,7]
[356839064,1743313846176,-1691.825242,0.00029899,7]
[356839065,1743313846185,-340.901456,0.00029899,7]
[356839066,1743313846194,-340.901456,0.00029899,7]
[356839067,1743313846203,-151.871544,0.00029899,7]
[356839068,1743313846213,-151.0,0.00029899,7]
[356839069,1743313846222,-403.24109,0.00029899,7]
[356839070,1743313846232,-403.24109,0.00029899,7]
[356839071,1743313846242,-151.0,0.00029899,7]
[356839072,1743313846251,-151.0,0.00029899,7]
[356839073,1743313846260,-151.0,0.00029899,7]
[356839074,1743313846270,-151.0,0.00029899,7]
[356839075,1743313846279,-288.510051,0.00029899,7]
[356839076,1743313846288,-288.510051,0.00029899,7]
[356839077,1743313846298,-151.0,0.00029899,7]
[356839078,1743313846307,-1064.12745,0.00029899,7]
[356839079,1743313846317,-1064.12745,0.00029899,7]
[356839080,1743313846326,-151.0,0.00029899,7]
[356839081,1743313846335,-151.0,0.00029899,7]
[356839082,1743313846346,-231.914525,0.00029899,7]
[356839083,1743313846355,-231.914525,0.00029899,7]
[356839084,1743313846364,-550.232468,0.00029899,7]
[356839085,1743313846373,-151.0,0.00029899,7]
[356839086,1743313846383,-550.232468,0.00029899,7]
[356839087,1743313846392,-746.436611,0.00029899,7]
[356839088,1743313846402,-746.436611,0.00029899,7]
[356839089,1743313846411,-381.268454,0.00029899,7]
[356839090,1743313846421,-381.268454,0.00029899,7]
[356839091,1743313846430,-151.0,0.00029899,7]
[356839092,1743313846440,-174.582321,0.00029899,7]
[356839093,1743313846449,-174.582321,0.00029899,7]
[356839094,1743313846459,-75387.18334096,0.000299,2]
[356839095,1743313846468,-227.93395157,0.0002999,2]
[356839096,1743313846478,-48292.84,0.0003,30]
[356839097,1743313846487,-2270.75225535,0.0003,2]
[356839098,1743313846622,-29420.73944627,0.0003,2]
[356839099,1743313846632,-242.93925973,0.0003,2]
[356839100,1743313846642,-1743.05471874,0.0003,2]
[356839101,1743313846651,-1539.164003,0.0003,2]
[356839102,1743313846661,-277.692633,0.0003,7]
[356839103,1743313846671,-277.692633,0.0003,7]
[356839104,1743313846681,-151.0,0.0003,7]
[356839105,1743313846690,-193.895808,0.0003,7]
[356839106,1743313846700,-193.895808,0.0003,7]
[356839107,1743313846710,-181.477774,0.0003,7]
[356839108,1743313846719,-332.944299,0.0003,7]
[356839109,1743313846729,-151.0,0.0003,7]
[356839110,1743313846740,-181.477774,0.0003,7]
[356839111,1743313846750,-151.0,0.0003,7]
[356839112,1743313846760,-332.944299,0.0003,7]
[356839113,1743313846770,-151.0,0.0003,7]
[356839114,1743313846780,-151.0,0.0003,7]
[356839115,1743313846792,-151.0,0.0003,7]
[356839116,1743313846802,-151.0,0.0003,7]
[356839117,1743313846812,-2622.855027,0.0003,7]
[356839118,1743313846823,-229.565867,0.0003,7]
[356839119,1743313846832,-2622.855027,0.0003,7]
[356839120,1743313846842,-151.0,0.0003,7]
[356839121,1743313846852,-151.0,0.0003,7]
[356839122,1743313846863,-258.466624,0.0003,7]
[356839123,1743313846873,-258.466624,0.0003,7]
[356839124,1743313846882,-326.541455,0.0003,7]
[356839125,1743313846891,-326.541455,0.0003,7]
[356839126,1743313846901,-211.0,0.0003,2]
[356839127,1743313846910,-151.831802,0.0003,7]
[356839128,1743313846920,-151.831802,0.0003,7]
[356839129,1743313846930,-377.544954,0.0003,7]
[356839130,1743313846940,-377.544954,0.0003,7]
[356839131,1743313846950,-151.0,0.0003,7]
[356839132,1743313846960,-151.0,0.0003,7]
[356839133,1743313846970,-151.0,0.0003,7]
[356839134,1743313846980,-183.006145,0.0003,7]
[356839135,1743313846990,-183.006145,0.0003,7]
[356839136,1743313846999,-3150.350628,0.0003,7]
[356839137,1743313847007,-3150.350628,0.0003,7]
[356839138,1743313847017,-151.0,0.0003,7]
[356839139,1743313847026,-151.0,0.0003,7]
[356839140,1743313847035,-2031.204191,0.0003,7]
[356839141,1743313847044,-2031.204191,0.0003,7]
[356839142,1743313847054,-533.001828,0.0003,7]
[356839143,1743313847063,-533.001828,0.0003,7]
[356839144,1743313847072,-1848.11,0.0003011,2]
[356839145,1743313847081,-209.0,0.0003012,2]
[356839146,1743313847091,-150.0,0.00030136,2]
[356839147,1743313847100,-200.0,0.00030137,2]
[356839148,1743313847109,-4715.92,0.00030137,2]
[356839149,1743313847119,-151.0,0.00030274,7]
[356839150,1743313847127,-746.292473,0.00030274,7]
[356839151,1743313847136,-746.292473,0.00030274,7]
[356839152,1743313847145,-277.446909,0.00030274,7]
[356839153,1743313847154,-277.446909,0.00030274,7]
[356839154,1743313847164,-151.0,0.00030274,7]
[356839155,1743313847173,-151.0,0.00030413,7]
[356839156,1743313847182,-151.0,0.00030413,7]
[356839157,1743313847192,-151.0,0.00030413,7]
[356839158,1743313847202,-151.0,0.00030413,7]
[356839159,1743313847211,-151.0,0.00030413,7]
[356839160,1743313847221,-363.908063,0.00030413,7]
[356839161,1743313847231,-363.908063,0.00030413,7]
[356839162,1743313847240,-725.127723,0.00030413,7]
[356839163,1743313847250,-725.127723,0.00030413,7]
[356839164,1743313847260,-616.823947,0.00030413,7]
[356839165,1743313847269,-616.823947,0.00030413,7]
[356839166,1743313847279,-10000.0,0.00030413,7]
[356839167,1743313847288,-151.0,0.00030413,7]
[356839168,1743313847297,-160.588606,0.00030413,7]
[356839169,1743313847306,-151.0,0.00030413,7]
[356839170,1743313847316,-7442.37399825,0.000306,2]
[356839171,1743313847326,-485.476002,0.000306,7]
[356839172,1743313847335,-151.0,0.000306,7]
[356839173,1743313847345,-485.476002,0.000306,7]
[356839174,1743313847355,-151.0,0.000306,7]
[356839175,1743313847364,-151.0,0.000306,7]
[356839176,1743313847374,-151.0,0.000306,7]
[356839177,1743313847383,-151.0,0.000306,7]
[356839178,1743313847392,-1064.12745,0.000306,7]
[356839179,1743313847402,-1064.12745,0.000306,7]
[356839180,1743313847411,-151.0,0.000306,7]
[356839181,1743313847420,-151.0,0.000306,7]
[356839182,1743313847430,-231.914525,0.000306,7]
[356839183,1743313847439,-231.914525,0.000306,7]
[356839184,1743313847449,-550.232468,0.000306,7]
[356839185,1743313847459,-151.0,0.000306,7]
[356839186,1743313847468,-550.232468,0.000306,7]
[356839187,1743313847478,-746.436611,0.000306,7]
[356839188,1743313847488,-746.436611,0.000306,7]
[356839189,1743313847497,-381.268454,0.000306,7]
[356839190,1743313847506,-381.268454,0.000306,7]
[356839191,1743313847516,-151.0,0.000306,7]
[356839192,1743313847525,-174.582321,0.000306,7]
[356839193,1743313847535,-174.582321,0.000306,7]
[356839194,1743313847544,-658.00754688,0.000309,2]
[356839195,1743313847554,-288.510051,0.00030911,7]
[356839196,1743313847563,-288.510051,0.00030911,7]
[356839197,1743313847573,-3210.89338537,0.00030911,2]
[356839198,1743313847583,-400.0,0.00031,2]
[356839199,1743313847592,-200262.60159687,0.00031,2]
[356839200,1743313847602,-151.0,0.00031,7]
[356839201,1743313847611,-151.0,0.00031,7]
[356839202,1743313847621,-151.0,0.00031,7]
[356839203,1743313847630,-212.608142,0.00031,7]
[356839204,1743313847640,-151.0,0.00031,7]
[356839205,1743313847649,-151.0,0.00031,7]
[356839206,1743313847659,-151.0,0.00031,7]
[356839207,1743313847668,-456.47439,0.00031,6]
[356839208,1743313847679,-456.47439,0.00031,6]
[356839209,1743313847688,-262.702078,0.00031,7]
[356839210,1743313847698,-262.702078,0.00031,7]
[356839211,1743313847708,-157.307026,0.00031,7]
[356839212,1743313847718,-157.307026,0.00031,7]
[356839213,1743313847730,-454.097864,0.00031,7]
[356839214,1743313847740,-454.097864,0.00031,7]
[356839215,1743313847751,-151.0,0.00031,7]
[356839216,1743313847761,-1691.825242,0.00031,7]
[356839217,1743313847772,-340.901456,0.00031,7]
[356839218,1743313847784,-1691.825242,0.00031,7]
[356839219,1743313847798,-340.901456,0.00031,7]
[356839220,1743313847809,-233.363494,0.00031,7]
[356839221,1743313847818,-403.24109,0.00031,7]
[356839222,1743313847828,-403.24109,0.00031,7]
[356839223,1743313847838,-151.0,0.00031,7]
[356839224,1743313847848,-151.0,0.00031,7]
[356839225,1743313847859,-151.0,0.00031,7]
[356839226,1743313847870,-152.540197,0.00031,7]
[356839227,1743313847880,-288.510051,0.00031,7]
[356839228,1743313847889,-288.510051,0.00031,7]
[356839229,1743313847898,-485.476002,0.00031,7]
[356839230,1743313847907,-151.0,0.00031,7]
[356839231,1743313847917,-485.476002,0.00031,7]
[356839232,1743313847926,-151.0,0.00031,7]
[356839233,1743313847936,-151.0,0.00031,7]
[356839234,1743313847945,-151.0,0.00031,7]
[356839235,1743313847956,-151.0,0.00031,7]
[356839236,1743313847965,-151.0,0.00031,7]
[356839237,1743313847975,-151.0,0.00031,7]
[356839238,1743313847985,-363.908063,0.00031,7]
[356839239,1743313847994,-363.908063,0.00031,7]
[356839240,1743313848004,-209.393388,0.00031,7]
[356839241,1743313848014,-725.127723,0.00031,7]
[356839242,1743313848024,-725.127723,0.00031,7]
[356839243,1743313848034,-746.292473,0.00031,7]
[356839244,1743313848044,-746.292473,0.00031,7]
[356839245,1743313848055,-151.0,0.00031,7]
[356839246,1743313848065,-277.446909,0.00031,7]
[356839247,1743313848075,-277.446909,0.00031,7]
[356839248,1743313848085,-1064.12745,0.00031,7]
[356839249,1743313848095,-1064.12745,0.00031,7]
[356839250,1743313848105,-151.0,0.00031,7]
[356839251,1743313848114,-153.447523,0.00031,7]
[356839252,1743313848124,-151.0,0.00031,7]
[356839253,1743313848134,-616.823947,0.00031,7]
[356839254,1743313848143,-616.823947,0.00031,7]
[356839255,1743313848153,-231.914525,0.00031,7]
[356839256,1743313848163,-231.914525,0.00031,7]
[356839257,1743313848173,-550.232468,0.00031,7]
[356839258,1743313848183,-151.0,0.00031,7]
[356839259,1743313848192,-10000.0,0.00031,7]
[356839260,1743313848202,-550.232468,0.00031,7]
[356839261,1743313848212,-746.436611,0.00031,7]
[356839262,1743313848222,-746.436611,0.00031,7]
[356839263,1743313848232,-381.268454,0.00031,7]
[356839264,1743313848242,-381.268454,0.00031,7]
[356839265,1743313848252,-151.0,0.00031,7]
[356839266,1743313848262,-151.0,0.00031,7]
[356839267,1743313848271,-151.0,0.00031,7]
[356839268,1743313848281,-151.0,0.00031,7]
[356839269,1743313848291,-174.582321,0.00031,7]
[356839270,1743313848300,-193.895808,0.00031,7]
[356839271,1743313848310,-174.582321,0.00031,7]
[356839272,1743313848319,-193.895808,0.00031,7]
[356839273,1743313848329,-181.477774,0.00031,7]
[356839274,1743313848339,-332.944299,0.00031,7]
[356839275,1743313848349,-151.0,0.00031,7]
[356839276,1743313848359,-181.477774,0.00031,7]
[356839277,1743313848369,-151.0,0.00031,7]
[356839278,1743313848378,-332.944299,0.00031,7]
[356839279,1743313848387,-151.0,0.00031,7]
[356839280,1743313848397,-151.0,0.00031,7]
[356839281,1743313848406,-204.36682,0.00031,7]
[356839282,1743313848416,-151.0,0.00031,7]
[356839283,1743313848426,-2622.855027,0.00031,7]
[356839284,1743313848436,-2622.855027,0.00031,7]
[356839285,1743313848445,-151.0,0.00031,7]
[356839286,1743313848454,-151.0,0.00031,7]
[356839287,1743313848464,-258.466624,0.00031,7]
[356839288,1743313848474,-258.466624,0.00031,7]
[356839289,1743313848484,-326.541455,0.00031,7]
[356839290,1743313848493,-326.541455,0.00031,7]
[356839291,1743313848502,-151.831802,0.00031,7]
[356839292,1743313848512,-151.831802,0.00031,7]
[356839293,1743313848521,-377.544954,0.00031,7]
[356839294,1743313848531,-377.544954,0.00031,7]
[356839295,1743313848541,-151.0,0.00031,7]
[356839296,1743313848551,-151.0,0.00031,7]
[356839297,1743313848560,-151.0,0.00031,7]
[356839298,1743313848569,-183.006145,0.00031,7]
[356839299,1743313848578,-183.006145,0.00031,7]
[356839300,1743313848587,-3150.350628,0.00031,7]
[356839301,1743313848597,-3150.350628,0.00031,7]
[356839302,1743313848607,-151.0,0.00031,7]
[356839303,1743313848616,-151.0,0.00031,7]
[356839304,1743313848626,-2031.204191,0.00031,7]
[356839305,1743313848636,-2031.204191,0.00031,7]
[356839306,1743313848645,-533.001828,0.00031,7]
[356839307,1743313848654,-533.001828,0.00031,7]
[356839308,1743313848664,-151.0,0.000314,7]